[Event "FIDE WCCC Open-10 2024"]
[Site "Montesilvano"]
[Date "2024.11.22"]
[Round "7.31"]
[White "Kazimzade, Mahammad"]
[Black "Nikitakis, Michail"]
[Result "1/2-1/2"]
[Annotator "NA RC"]
[ECO "A29"]
[WhiteElo "1687"]
[BlackElo "1818"]
[PlyCount "108"]
[EventDate "2024.11.18"]
[EventType "swiss"]
[EventCountry "ITA"]
[SourceTitle "playchess.com"]
[Source "ChessBase"]
[SourceQuality "1"]
[TimeControl "5400+30"]

1. c4 {[%emt 0:00:01]} e5 {[%emt 0:00:05]} 2. Nc3 {[%emt 0:00:51]} Nf6 {[%emt 0:00:05]} 3. d3 {[%emt 0:01:33]} Nc6 {[%emt 0:00:40]} 4. g3 {[%emt 0:01:00]} d5 {[%emt 0:01:30]} 5. cxd5 {[%emt 0:01:16]} Nxd5 {[%emt 0:00:07]} 6. Bg2 {[%emt 0:01:17]} Nb6 {[%emt 0:00:34]} 7. Nf3 {[%emt 0:00:56]} Be7 {[%emt 0:00:12]} 8. O-O {[%emt 0:01:56]} O-O {[%emt 0:00:08]} 9. b3 {[%emt 0:04:41]} Re8 {[%emt 0:02:59]} 10. Bb2 {[%emt 0:00:49]} Bf8 {[%emt 0:01:40]} 11. Rc1 {[%emt 0:03:56]} Be6 {[%emt 0:03:39]} 12. a3 {[%emt 0:21:05]} Na5 {[%emt 0:41:44]} 13. Nd2 {[%emt 0:01:11]} Nc6 {[%emt 0:02:14]} 14. b4 {[%emt 0:10:47]} a6 {[%emt 0:08:45]} 15. Nf3 {[%emt 0:08:42]} f5 {[%emt 0:18:44]} 16. Nb1 {[%emt 0:21:28]} Qf6 {[%emt 0:14:52]} 17. Nfd2 {[%emt 0:03:14]} Bd5 {[%emt 0:00:31]} 18. e4 {[%emt 0:06:15]} Be6 {[%emt 0:00:27]} 19. Nf3 {[%emt 0:01:54]} fxe4 {[%emt 0:00:31]} 20. dxe4 {[%emt 0:00:07]} Bg4 {[%emt 0:00:31]} 21. Qb3+ {[%emt 0:01:14]} Be6 {[%emt 0:00:05]} 22. Qc3 {[%emt 0:00:44]} Rad8 {[%emt 0:00:53]} 23. Qc2 {[%emt 0:01:18]} Kh8 {[%emt 0:00:32]} 24. Nbd2 {[%emt 0:00:55]} Rd7 {[%emt 0:00:31]} 25. h3 {[%emt 0:00:56]} Red8 {[%emt 0:00:29]} 26. Rfd1 {[%emt 0:00:16]} Bd6 {[%emt 0:00:30]} 27. Bf1 {[%emt 0:01:16]} Rf8 {[%emt 0:00:29]} 28. Kh2 {[%emt 0:01:09]} h6 {[%emt 0:00:31]} 29. Bg2 {[%emt 0:01:04]} Kh7 {[%emt 0:00:31]} 30. Nf1 {[%emt 0:01:26]} Nc4 {[%emt 0:00:30]} 31. Ne3 {[%emt 0:00:38]} Nxe3 {[%emt 0:00:28]} 32. fxe3 {[%emt 0:00:05]} g5 {[%emt 0:00:31]} 33. Rf1 {[%emt 0:00:16]} Qg7 {[%emt 0:00:30]} 34. Bc3 {[%emt 0:01:18]} Rdf7 {[%emt 0:00:28]} 35. Qb2 {[%emt 0:00:45]} Bxh3 {[%emt 0:00:31]} 36. Bxh3 {[%emt 0:00:14]} g4 {[%emt 0:00:30]} 37. Nh4 {[%emt 0:00:25]} gxh3 {[%emt 0:00:30]} 38. Rxf7 {[%emt 0:01:25]} Rxf7 {[%emt 0:00:30]} 39. Kxh3 {[%emt 0:00:30]} Qg5 {[%emt 0:00:29]} 40. Qe2 {[%emt 0:00:19]} Rg7 {[%emt 0:00:32]} 41. Qf3 {[%emt 0:00:48]} Nd4 {[%emt 0:00:30]} 42. exd4 {[%emt 0:00:21]} Qxc1 {[%emt 0:00:23]} 43. dxe5 {[%emt 0:00:43]} Be7 {[%emt 0:00:38]} 44. Qf5+ {[%emt 0:00:12]} Kg8 {[%emt 0:00:29]} 45. Qe6+ {[%emt 0:00:43]} Kh7 {[%emt 0:00:31]} 46. Qf5+ {[%emt 0:00:38]} Kg8 {[%emt 0:00:26]} 47. Qe6+ {[%emt 0:00:50]} Kh7 {[%emt 0:00:32]} 48. Qf5+ {[%emt 0:01:03]} Kg8 49. Qe6+ Rf7 {[%emt 0:01:33]} 50. Qc8+ {[%emt 0:01:00]} Kh7 {[%emt 0:00:30]} 51. Qe6 {[%emt 0:00:30]} Kg8 {[%emt 0:00:30]} 52. Qg6+ {[%emt 0:00:30]} Rg7 {[%emt 0:00:30]} 53. Qe6+ Rf7 {[%emt 0:00:30]} 54. Qg6+ Kf8 1/2-1/2

[Event "FIDE WCCC Open-10 2024"]
[Site "Montesilvano"]
[Date "2024.11.22"]
[Round "7.32"]
[White "Qian, Qipeng"]
[Black "Zhang, Oscar Y"]
[Result "1-0"]
[Annotator "NA RC"]
[ECO "D17"]
[WhiteElo "1641"]
[BlackElo "1817"]
[PlyCount "101"]
[EventDate "2024.11.18"]
[EventType "swiss"]
[EventCountry "ITA"]
[SourceTitle "playchess.com"]
[Source "ChessBase"]
[SourceQuality "1"]
[TimeControl "5400+30"]

1. d4 {[%emt 0:00:25]} d5 {[%emt 0:00:08]} 2. c4 {[%emt 0:01:09]} c6 {[%emt 0:00:12]} 3. Nf3 {[%emt 0:00:06]} Nf6 {[%emt 0:00:15]} 4. Nc3 {[%emt 0:00:04]} dxc4 {[%emt 0:00:07]} 5. a4 {[%emt 0:00:06]} Bf5 {[%emt 0:00:17]} 6. Ne5 {[%emt 0:00:04]} Nbd7 {[%emt 0:00:35]} 7. Nxc4 {[%emt 0:00:05]} Qc7 {[%emt 0:00:13]} 8. g3 {[%emt 0:00:04]} e5 {[%emt 0:00:13]} 9. dxe5 {[%emt 0:00:07]} Nxe5 {[%emt 0:00:11]} 10. Bf4 {[%emt 0:00:04]} Nfd7 {[%emt 0:00:15]} 11. Bg2 {[%emt 0:00:05]} f6 {[%emt 0:00:41]} 12. O-O {[%emt 0:00:12]} O-O-O {[%emt 0:00:10]} 13. Nxe5 {[%emt 0:01:02]} fxe5 {[%emt 0:01:56]} 14. Bg5 {[%emt 0:00:12]} Nf6 {[%emt 0:06:21]} 15. Qb3 {[%emt 0:00:44]} Kb8 {[%emt 0:05:16]} 16. a5 {[%emt 0:02:18]} Rd4 {[%emt 0:06:01]} 17. Ra4 {[%emt 0:07:42]} Be7 {[%emt 0:16:09]} 18. Rc1 {[%emt 0:02:14]} Qd7 {[%emt 0:01:46]} 19. a6 {[%emt 0:06:13]} b6 {[%emt 0:04:41]} 20. Rxd4 {[%emt 0:01:11]} exd4 {[%emt 0:00:16]} 21. Bf4+ {[%emt 0:00:09]} Bd6 {[%emt 0:02:15]} 22. Bxc6 {[%emt 0:01:04]} Qe7 {[%emt 0:19:00]} 23. Bxd6+ {[%emt 0:01:25]} Qxd6 {[%emt 0:00:14]} 24. Nb5 {[%emt 0:00:06]} Qe7 {[%emt 0:01:54]} 25. Nxd4 {[%emt 0:00:24]} Bc8 {[%emt 0:02:23]} 26. Bg2 {[%emt 0:00:23]} Bd7 {[%emt 0:06:49]} 27. Qf3 {[%emt 0:00:01]} Ne4 {[%emt 0:02:15]} 28. Qxe4 {[%emt 0:00:01]} Qxe4 {[%emt 0:00:14]} 29. Bxe4 {[%emt 0:00:04]} Bh3 {[%emt 0:00:23]} 30. Nc6+ {[%emt 0:00:03]} Kc7 {[%emt 0:00:15]} 31. Nxa7+ {[%emt 0:00:04]} Kd6 {[%emt 0:00:30]} 32. Nb5+ {[%emt 0:00:03]} Ke5 {[%emt 0:00:17]} 33. Bg2 {[%emt 0:00:03]} Bxg2 {[%emt 0:01:11]} 34. Kxg2 {[%emt 0:00:04]} Ra8 {[%emt 0:00:53]} 35. a7 {[%emt 0:00:04]} h5 {[%emt 0:00:21]} 36. Ra1 {[%emt 0:00:02]} h4 {[%emt 0:00:12]} 37. g4 {[%emt 0:00:03]} h3+ {[%emt 0:00:18]} 38. Kxh3 {[%emt 0:00:04]} g5 {[%emt 0:00:24]} 39. Nc7 {[%emt 0:00:04]} Rh8+ {[%emt 0:00:15]} 40. Kg3 {[%emt 0:00:03]} Kf6 {[%emt 0:00:32]} 41. a8=Q {[%emt 0:00:05]} Rxa8 {[%emt 0:00:33]} 42. Nxa8 {[%emt 0:00:05]} Kg6 {[%emt 0:00:10]} 43. Nxb6 {[%emt 0:00:03]} Kh6 {[%emt 0:00:17]} 44. Nc4 {[%emt 0:00:03]} Kg7 {[%emt 0:00:27]} 45. b4 {[%emt 0:00:02]} Kf6 {[%emt 0:00:32]} 46. b5 {[%emt 0:00:04]} Kg6 {[%emt 0:00:12]} 47. b6 {[%emt 0:00:03]} Kh6 {[%emt 0:00:14]} 48. b7 {[%emt 0:00:02]} Kg6 {[%emt 0:00:21]} 49. b8=Q {[%emt 0:00:04]} Kh6 {[%emt 0:00:08]} 50. Ra7 {[%emt 0:00:04]} Kg6 {[%emt 0:00:15]} 51. Qd6# {[%emt 0:00:03]} 1-0

[Event "FIDE WCCC Open-10 2024"]
[Site "Montesilvano"]
[Date "2024.11.22"]
[Round "7.33"]
[White "Cao, Frank Zhongtian"]
[Black "Burba, Mikita"]
[Result "1-0"]
[Annotator "NA RC"]
[ECO "B38"]
[WhiteElo "1793"]
[BlackElo "1528"]
[PlyCount "85"]
[EventDate "2024.11.18"]
[EventType "swiss"]
[EventCountry "ITA"]
[SourceTitle "playchess.com"]
[Source "ChessBase"]
[SourceQuality "1"]
[TimeControl "5400+30"]

1. e4 {[%emt 0:00:02]} c5 {[%emt 0:00:04]} 2. Nf3 {[%emt 0:00:06]} Nc6 {[%emt 0:00:05]} 3. d4 {[%emt 0:00:04]} cxd4 {[%emt 0:00:05]} 4. Nxd4 {[%emt 0:00:05]} g6 {[%emt 0:00:07]} 5. c4 {[%emt 0:00:03]} Bg7 {[%emt 0:00:07]} 6. Be3 {[%emt 0:00:06]} Nf6 {[%emt 0:00:16]} 7. Nc3 {[%emt 0:00:18]} d6 {[%emt 0:00:12]} 8. Be2 {[%emt 0:00:03]} O-O {[%emt 0:00:10]} 9. O-O {[%emt 0:00:05]} Bd7 {[%emt 0:00:33]} 10. h3 {[%emt 0:00:07]} Nxd4 {[%emt 0:00:31]} 11. Bxd4 {[%emt 0:00:03]} Bc6 {[%emt 0:00:09]} 12. Qc2 {[%emt 0:00:05]} a5 {[%emt 0:01:41]} 13. b3 {[%emt 0:00:06]} Nd7 {[%emt 0:02:18]} 14. Bxg7 {[%emt 0:00:05]} Kxg7 {[%emt 0:00:06]} 15. Rad1 {[%emt 0:00:08]} Rc8 {[%emt 0:13:53]} 16. Qb2 {[%emt 0:04:02]} Kg8 {[%emt 0:03:31]} 17. Rfe1 {[%emt 0:11:34]} Re8 {[%emt 0:16:10]} 18. Nd5 {[%emt 0:05:23]} e6 {[%emt 0:01:10]} 19. Nc3 {[%emt 0:01:15]} Nc5 {[%emt 0:00:57]} 20. Bf1 {[%emt 0:07:42]} Qe7 {[%emt 0:11:00]} 21. g3 {[%emt 0:11:51]} Red8 {[%emt 0:02:15]} 22. Bg2 {[%emt 0:03:14]} h5 {[%emt 0:02:59]} 23. h4 {[%emt 0:13:32]} Kh7 {[%emt 0:09:26]} 24. Qd2 {[%emt 0:10:50]} Qf6 {[%emt 0:03:26]} 25. Qd4 {[%emt 0:06:28]} Qxd4 {[%emt 0:15:42]} 26. Rxd4 {[%emt 0:00:04]} e5 {[%emt 0:00:15]} 27. Rd2 {[%emt 0:00:30]} Ne6 {[%emt 0:01:16]} 28. Red1 {[%emt 0:04:47]} Nd4 {[%emt 0:00:19]} 29. Ne2 {[%emt 0:00:34]} Nxe2+ {[%emt 0:00:51]} 30. Rxe2 {[%emt 0:00:06]} Rd7 {[%emt 0:00:21]} 31. Bh3 {[%emt 0:00:24]} Rcd8 {[%emt 0:00:58]} 32. Bxd7 {[%emt 0:00:23]} Rxd7 {[%emt 0:00:05]} 33. f3 {[%emt 0:07:16]} f5 {[%emt 0:00:26]} 34. Red2 {[%emt 0:03:11]} fxe4 {[%emt 0:00:16]} 35. fxe4 {[%emt 0:00:16]} Bxe4 {[%emt 0:01:04]} 36. Rxd6 {[%emt 0:00:08]} Rxd6 {[%emt 0:00:35]} 37. Rxd6 {[%emt 0:00:05]} Bc6 {[%emt 0:00:10]} 38. Re6 {[%emt 0:00:32]} e4 {[%emt 0:00:06]} 39. Kf2 {[%emt 0:00:52]} Kg7 {[%emt 0:00:15]} 40. Re5 {[%emt 0:06:50]} Kf6 {[%emt 0:01:26]} 41. Rxa5 {[%emt 0:00:43]} Ke6 {[%emt 0:00:04]} 42. Ke3 {[%emt 0:01:07]} Kf6 {[%emt 0:00:14]} 43. Rc5 {[%emt 0:06:55]} 1-0

[Event "FIDE WCCC Open-10 2024"]
[Site "Montesilvano"]
[Date "2024.11.22"]
[Round "7.34"]
[White "Neuschild, Marius"]
[Black "Otetileu, Amanbek"]
[Result "0-1"]
[Annotator "NA RC"]
[ECO "B33"]
[WhiteElo "1786"]
[BlackElo "1632"]
[PlyCount "114"]
[EventDate "2024.11.18"]
[EventType "swiss"]
[EventCountry "ITA"]
[SourceTitle "playchess.com"]
[Source "ChessBase"]
[SourceQuality "1"]
[TimeControl "5400+30"]

1. e4 {[%emt 0:00:00]} c5 {[%emt 0:00:04]} 2. Nf3 {[%emt 0:00:04]} d6 {[%emt 0:00:18]} 3. d4 {[%emt 0:00:03]} cxd4 {[%emt 0:00:06]} 4. Nxd4 {[%emt 0:00:03]} Nf6 {[%emt 0:00:10]} 5. Nc3 {[%emt 0:00:03]} Nc6 {[%emt 0:00:04]} 6. Bc4 {[%emt 0:00:05]} e5 {[%emt 0:00:07]} 7. Nxc6 {[%emt 0:08:22]} bxc6 {[%emt 0:00:09]} 8. Bg5 {[%emt 0:06:29]} Be7 {[%emt 0:00:27]} 9. O-O {[%emt 0:02:53]} O-O {[%emt 0:02:16]} 10. Qd2 {[%emt 0:05:41]} Rb8 {[%emt 0:03:35]} 11. Bb3 {[%emt 0:01:48]} Be6 {[%emt 0:00:34]} 12. Rad1 {[%emt 0:09:13]} Ne8 {[%emt 0:06:09]} 13. Bxe7 {[%emt 0:02:26]} Qxe7 {[%emt 0:00:02]} 14. Rfe1 {[%emt 0:04:10]} Bxb3 {[%emt 0:04:22]} 15. axb3 {[%emt 0:00:38]} Rd8 {[%emt 0:03:47]} 16. Qe3 {[%emt 0:08:20]} g6 {[%emt 0:11:12]} 17. Rd3 {[%emt 0:19:48]} f5 {[%emt 0:01:54]} 18. f3 {[%emt 0:01:11]} f4 {[%emt 0:00:27]} 19. Qd2 {[%emt 0:03:37]} Ng7 {[%emt 0:01:46]} 20. Rd1 {[%emt 0:03:06]} Rf6 {[%emt 0:01:11]} 21. Na4 {[%emt 0:06:32]} g5 {[%emt 0:03:53]} 22. c4 {[%emt 0:02:54]} Ne6 {[%emt 0:05:30]} 23. Rxd6 {[%emt 0:02:26]} Nd4 {[%emt 0:00:21]} 24. Rxd8+ {[%emt 0:01:38]} Qxd8 {[%emt 0:00:01]} 25. c5 {[%emt 0:05:24]} Rf7 {[%emt 0:00:16]} 26. Qd3 {[%emt 0:01:22]} Rd7 {[%emt 0:00:26]} 27. Kf1 {[%emt 0:02:02]} Kf8 {[%emt 0:02:34]} 28. Nc3 {[%emt 0:02:08]} Ke7 {[%emt 0:00:38]} 29. b4 {[%emt 0:01:12]} h5 {[%emt 0:03:33]} 30. h3 {[%emt 0:00:45]} Qg8 {[%emt 0:05:45]} 31. b5 {[%emt 0:00:52]} cxb5 {[%emt 0:00:22]} 32. Nxb5 {[%emt 0:00:38]} Qb8 {[%emt 0:01:10]} 33. Nd6 {[%emt 0:00:33]} Qxb2 {[%emt 0:00:22]} 34. Rd2 {[%emt 0:00:29]} Qc1+ {[%emt 0:00:22]} 35. Rd1 {[%emt 0:00:15]} Qxc5 {[%emt 0:00:10]} 36. Nf5+ {[%emt 0:00:19]} Kd8 {[%emt 0:00:20]} 37. Nxd4 {[%emt 0:00:56]} Rxd4 {[%emt 0:00:05]} 38. Qe2 {[%emt 0:00:28]} a5 {[%emt 0:01:00]} 39. Rxd4+ {[%emt 0:00:22]} exd4 {[%emt 0:00:45]} 40. Qa6 {[%emt 0:00:37]} Kc7 {[%emt 0:00:50]} 41. Qe6 {[%emt 0:00:32]} a4 {[%emt 0:01:53]} 42. Qf7+ {[%emt 0:00:11]} Kb6 {[%emt 0:00:07]} 43. Qf6+ {[%emt 0:00:21]} Kb5 {[%emt 0:00:12]} 44. e5 {[%emt 0:00:49]} d3 {[%emt 0:00:51]} 45. Qf5 {[%emt 0:00:20]} d2 {[%emt 0:00:58]} 46. Qd7+ {[%emt 0:00:51]} Kb6 {[%emt 0:42:26]} 47. Qxd2 {[%emt 0:00:04]} Qxe5 {[%emt 0:00:00]} 48. Qd8+ {[%emt 0:00:29]} Kb5 {[%emt 0:00:00]} 49. Qd3+ {[%emt 0:00:23]} Kb4 {[%emt 0:00:00]} 50. Qb1+ {[%emt 0:00:18]} Ka5 {[%emt 0:00:00]} 51. Qc1 {[%emt 0:01:03]} Qe3 {[%emt 0:00:00]} 52. Qc7+ {[%emt 0:00:23]} Kb4 {[%emt 0:00:00]} 53. Qb8+ {[%emt 0:00:21]} Kc3 {[%emt 0:00:00]} 54. Qc7+ {[%emt 0:00:26]} Kd2 {[%emt 0:00:00]} 55. Qa5+ {[%emt 0:00:32]} Qc3 {[%emt 0:00:00]} 56. Qxa4 {[%emt 0:01:04]} Qc1+ {[%emt 0:00:00]} 57. Kf2 {[%emt 0:00:12]} Qe1# {[%emt 0:00:00]} 0-1

[Event "FIDE WCCC Open-10 2024"]
[Site "Montesilvano"]
[Date "2024.11.22"]
[Round "7.36"]
[White "Aghoyan, Gevorg"]
[Black "Guntaka, Aayansh"]
[Result "0-1"]
[Annotator "NA RC"]
[ECO "B35"]
[WhiteElo "1682"]
[BlackElo "1798"]
[PlyCount "158"]
[EventDate "2024.11.18"]
[EventType "swiss"]
[EventCountry "ITA"]
[SourceTitle "playchess.com"]
[Source "ChessBase"]
[SourceQuality "1"]
[TimeControl "5400+30"]

1. e4 {[%emt 0:00:03]} c5 {[%emt 0:00:04]} 2. Nf3 {[%emt 0:00:07]} Nc6 {[%emt 0:00:05]} 3. d4 {[%emt 0:00:20]} cxd4 {[%emt 0:00:06]} 4. Nxd4 {[%emt 0:00:06]} g6 {[%emt 0:00:06]} 5. Nc3 {[%emt 0:00:54]} Bg7 {[%emt 0:00:06]} 6. Be3 {[%emt 0:00:27]} Nf6 {[%emt 0:00:15]} 7. Bc4 {[%emt 0:01:16]} Qa5 {[%emt 0:00:10]} 8. f3 {[%emt 0:05:48]} Qb4 {[%emt 0:00:25]} 9. Nxc6 {[%emt 0:10:35]} dxc6 {[%emt 0:06:31]} 10. Bb3 {[%emt 0:07:55]} Nd7 {[%emt 0:05:06]} 11. O-O {[%emt 0:05:30]} O-O {[%emt 0:00:49]} 12. a3 {[%emt 0:11:39]} Qa5 {[%emt 0:00:27]} 13. Bd4 {[%emt 0:01:35]} Bh6 {[%emt 0:07:53]} 14. Qe2 {[%emt 0:04:28]} c5 {[%emt 0:00:53]} 15. Be3 {[%emt 0:04:53]} Bg7 {[%emt 0:00:56]} 16. Bd2 {[%emt 0:08:51]} e6 {[%emt 0:05:52]} 17. Rad1 {[%emt 0:08:36]} a6 {[%emt 0:02:42]} 18. a4 {[%emt 0:04:31]} Qc7 {[%emt 0:00:23]} 19. Be1 {[%emt 0:01:59]} Be5 {[%emt 0:00:47]} 20. h3 {[%emt 0:04:22]} Nf6 {[%emt 0:00:51]} 21. Bf2 {[%emt 0:06:29]} Bf4 {[%emt 0:01:56]} 22. Qe1 {[%emt 0:03:42]} Be5 {[%emt 0:05:16]} 23. Be3 {[%emt 0:01:40]} Nh5 {[%emt 0:00:46]} 24. Ne2 {[%emt 0:00:40]} Bxb2 {[%emt 0:04:09]} 25. c3 {[%emt 0:01:39]} c4 {[%emt 0:00:47]} 26. Bc2 {[%emt 0:00:42]} Ba3 {[%emt 0:00:18]} 27. Qd2 {[%emt 0:01:05]} Bc5 {[%emt 0:00:40]} 28. Bxc5 {[%emt 0:01:23]} Qxc5+ {[%emt 0:00:09]} 29. Qd4 {[%emt 0:00:54]} Qc6 {[%emt 0:01:48]} 30. e5 {[%emt 0:00:50]} Qc7 {[%emt 0:03:30]} 31. Be4 {[%emt 0:01:04]} Ng7 {[%emt 0:02:46]} 32. Ng3 {[%emt 0:00:40]} Rb8 {[%emt 0:01:33]} 33. Rf2 {[%emt 0:00:36]} f5 {[%emt 0:03:09]} 34. exf6 {[%emt 0:00:34]} Ne8 {[%emt 0:00:18]} 35. Nf1 {[%emt 0:00:57]} Nxf6 {[%emt 0:01:43]} 36. Ne3 {[%emt 0:00:44]} b5 {[%emt 0:02:00]} 37. Rb2 {[%emt 0:00:31]} Bd7 {[%emt 0:00:45]} 38. axb5 {[%emt 0:00:11]} axb5 {[%emt 0:00:55]} 39. Ng4 {[%emt 0:00:28]} Nxg4 {[%emt 0:01:22]} 40. hxg4 {[%emt 0:00:06]} Rfd8 {[%emt 0:02:07]} 41. Rbd2 {[%emt 0:00:37]} b4 {[%emt 0:01:29]} 42. Qf6 {[%emt 0:01:00]} Qc5+ {[%emt 0:04:24]} 43. Kh1 {[%emt 0:00:27]} Rf8 {[%emt 0:00:13]} 44. Qd4 {[%emt 0:00:40]} Qxd4 {[%emt 0:02:01]} 45. Rxd4 {[%emt 0:00:07]} Ba4 {[%emt 0:02:02]} 46. Ra1 {[%emt 0:00:11]} Bb3 {[%emt 0:00:15]} 47. cxb4 {[%emt 0:00:31]} Rxb4 {[%emt 0:01:11]} 48. Rc1 {[%emt 0:00:15]} Rc8 {[%emt 0:00:45]} 49. Bd3 {[%emt 0:00:46]} e5 {[%emt 0:04:55]} 50. Re4 {[%emt 0:00:51]} Rc5 {[%emt 0:01:57]} 51. Bf1 {[%emt 0:00:21]} Kf7 {[%emt 0:01:38]} 52. Kg1 {[%emt 0:00:20]} Ke6 {[%emt 0:01:35]} 53. Kf2 {[%emt 0:00:15]} Kd6 {[%emt 0:00:33]} 54. Kg1 {[%emt 0:00:38]} Kc6 {[%emt 0:00:51]} 55. Kf2 {[%emt 0:00:10]} Ba2 {[%emt 0:01:10]} 56. Kg3 {[%emt 0:00:30]} g5 {[%emt 0:01:56]} 57. Kh2 {[%emt 0:00:25]} Ra4 {[%emt 0:00:57]} 58. Kg1 {[%emt 0:00:59]} Kb5 {[%emt 0:01:23]} 59. Kf2 {[%emt 0:00:47]} Kb4 {[%emt 0:00:45]} 60. Be2 {[%emt 0:00:53]} Kb3 {[%emt 0:00:53]} 61. Bd1+ {[%emt 0:00:27]} Kb2 {[%emt 0:00:15]} 62. Rc2+ {[%emt 0:00:19]} Kb1 {[%emt 0:00:09]} 63. Re1 {[%emt 0:00:43]} Ra3 {[%emt 0:06:26]} 64. Rce2 {[%emt 0:00:28]} Ka1 {[%emt 0:00:16]} 65. Bc2+ {[%emt 0:00:40]} Kb2 {[%emt 0:00:05]} 66. Bxh7+ {[%emt 0:00:17]} Kb3 {[%emt 0:00:27]} 67. Bc2+ {[%emt 0:00:32]} Kb4 {[%emt 0:00:25]} 68. Re4 {[%emt 0:00:24]} Rc3 {[%emt 0:04:19]} 69. Rc1 {[%emt 0:00:48]} Bb3 {[%emt 0:00:19]} 70. Re2 {[%emt 0:00:14]} Bxc2 {[%emt 0:00:25]} 71. Rexc2 {[%emt 0:00:21]} Rxc2+ {[%emt 0:00:08]} 72. Rxc2 {[%emt 0:00:04]} Kb3 {[%emt 0:00:19]} 73. Rc1 {[%emt 0:00:17]} c3 {[%emt 0:00:11]} 74. Rb1+ {[%emt 0:00:04]} Ka2 {[%emt 0:00:09]} 75. Rc1 {[%emt 0:00:07]} Kb2 {[%emt 0:00:10]} 76. Re1 {[%emt 0:00:07]} c2 {[%emt 0:00:10]} 77. g3 {[%emt 0:00:06]} Rc3 {[%emt 0:00:32]} 78. Ke2 {[%emt 0:00:14]} c1=Q {[%emt 0:00:17]} 79. Rxc1 {[%emt 0:00:21]} Kxc1 {[%emt 0:00:05]} 0-1

[Event "FIDE WCCC Open-10 2024"]
[Site "Montesilvano"]
[Date "2024.11.22"]
[Round "7.37"]
[White "Akramov, Khusan"]
[Black "Golya, David"]
[Result "1-0"]
[Annotator "NA RC"]
[ECO "B31"]
[WhiteElo "1782"]
[BlackElo "1672"]
[PlyCount "65"]
[EventDate "2024.11.18"]
[EventType "swiss"]
[EventCountry "ITA"]
[SourceTitle "playchess.com"]
[Source "ChessBase"]
[SourceQuality "1"]
[TimeControl "5400+30"]

1. e4 {[%emt 0:00:02]} c5 {[%emt 0:00:04]} 2. Nf3 {[%emt 0:00:03]} Nc6 {[%emt 0:00:05]} 3. Bb5 {[%emt 0:00:05]} g6 {[%emt 0:00:07]} 4. O-O {[%emt 0:00:03]} Bg7 {[%emt 0:00:05]} 5. c3 {[%emt 0:00:17]} Nf6 {[%emt 0:00:13]} 6. Re1 {[%emt 0:00:04]} O-O {[%emt 0:00:16]} 7. d4 {[%emt 0:00:06]} d5 {[%emt 0:00:06]} 8. e5 {[%emt 0:02:55]} Ne4 {[%emt 0:00:42]} 9. h3 {[%emt 0:04:25]} cxd4 {[%emt 0:03:02]} 10. cxd4 {[%emt 0:01:34]} Bd7 {[%emt 0:00:43]} 11. Bd3 {[%emt 0:02:09]} Nb4 {[%emt 0:11:06]} 12. Nc3 {[%emt 0:06:03]} Nxc3 {[%emt 0:06:45]} 13. bxc3 {[%emt 0:00:25]} Nxd3 {[%emt 0:00:06]} 14. Qxd3 {[%emt 0:00:08]} Rc8 {[%emt 0:00:41]} 15. Bf4 {[%emt 0:05:08]} Qa5 {[%emt 0:08:32]} 16. Rac1 {[%emt 0:07:16]} Bf5 {[%emt 0:04:45]} 17. Qd2 {[%emt 0:00:18]} Rc4 {[%emt 0:00:29]} 18. Nh4 {[%emt 0:01:23]} Bd7 {[%emt 0:04:25]} 19. Bg5 {[%emt 0:17:18]} f6 {[%emt 0:05:04]} 20. exf6 {[%emt 0:50:48]} exf6 {[%emt 0:01:05]} 21. Bh6 {[%emt 0:00:00]} Rf7 {[%emt 0:18:07]} 22. Bxg7 {[%emt 0:00:00]} Rxg7 {[%emt 0:00:18]} 23. Nf3 {[%emt 0:00:00]} Ra4 {[%emt 0:08:32]} 24. Qf4 {[%emt 0:00:00]} Qd8 {[%emt 0:03:57]} 25. Qd6 {[%emt 0:00:00]} Ra5 {[%emt 0:00:55]} 26. Re3 {[%emt 0:00:00]} Qf8 {[%emt 0:23:20]} 27. Qc7 {[%emt 0:00:00]} b6 {[%emt 0:00:00]} 28. Rce1 {[%emt 0:00:00]} Bxh3 {[%emt 0:00:00]} 29. Re7 {[%emt 0:00:00]} Rxe7 {[%emt 0:00:00]} 30. Rxe7 {[%emt 0:00:00]} Bf5 {[%emt 0:00:00]} 31. Nh4 {[%emt 0:00:00]} Bc2 {[%emt 0:00:00]} 32. Rd7 {[%emt 0:00:00]} Rxa2 {[%emt 0:00:00]} 33. Rd8 {[%emt 0:00:00]} 1-0

[Event "FIDE WCCC Open-10 2024"]
[Site "Montesilvano"]
[Date "2024.11.22"]
[Round "7.38"]
[White "Iliev, Stoyan"]
[Black "Todmunkh, Turbat"]
[Result "0-1"]
[Annotator "NA RC"]
[ECO "C77"]
[WhiteElo "1671"]
[BlackElo "1773"]
[PlyCount "84"]
[EventDate "2024.11.18"]
[EventType "swiss"]
[EventCountry "ITA"]
[SourceTitle "playchess.com"]
[Source "ChessBase"]
[SourceQuality "1"]
[TimeControl "5400+30"]

1. e4 {[%emt 0:00:04]} e5 {[%emt 0:00:07]} 2. Nf3 {[%emt 0:00:06]} Nc6 {[%emt 0:00:06]} 3. Bb5 {[%emt 0:00:07]} a6 {[%emt 0:00:06]} 4. Ba4 {[%emt 0:00:12]} Nf6 {[%emt 0:00:09]} 5. Nc3 {[%emt 0:00:24]} b5 {[%emt 0:00:12]} 6. Bb3 {[%emt 0:00:08]} Be7 {[%emt 0:00:20]} 7. d3 {[%emt 0:00:28]} d6 {[%emt 0:00:08]} 8. h3 {[%emt 0:00:24]} Na5 {[%emt 0:00:26]} 9. Be3 {[%emt 0:01:38]} Nxb3 {[%emt 0:00:34]} 10. axb3 {[%emt 0:00:09]} Be6 {[%emt 0:00:07]} 11. Ng5 {[%emt 0:02:43]} c5 {[%emt 0:08:57]} 12. f4 {[%emt 0:08:06]} exf4 {[%emt 0:08:25]} 13. Bxf4 {[%emt 0:00:49]} O-O {[%emt 0:02:11]} 14. O-O {[%emt 0:03:47]} d5 {[%emt 0:09:57]} 15. e5 {[%emt 0:04:36]} Nd7 {[%emt 0:01:15]} 16. Nxe6 {[%emt 0:00:38]} fxe6 {[%emt 0:00:06]} 17. Qg4 {[%emt 0:00:16]} Rf5 {[%emt 0:21:45]} 18. Bh6 {[%emt 0:16:08]} g6 {[%emt 0:02:16]} 19. Rxf5 {[%emt 0:01:07]} exf5 {[%emt 0:00:07]} 20. Qf4 {[%emt 0:03:31]} Nb6 {[%emt 0:07:17]} 21. g4 {[%emt 0:09:03]} d4 {[%emt 0:14:18]} 22. Ne2 {[%emt 0:01:42]} fxg4 {[%emt 0:02:46]} 23. Rf1 {[%emt 0:02:25]} Qd5 {[%emt 0:02:29]} 24. Qxg4 {[%emt 0:12:44]} Qxe5 {[%emt 0:09:56]} 25. Nf4 {[%emt 0:03:45]} Bd6 {[%emt 0:01:17]} 26. Rf2 {[%emt 0:02:06]} Qe1+ {[%emt 0:06:52]} 27. Kg2 {[%emt 0:00:17]} Bxf4 {[%emt 0:00:44]} 28. Qxf4 {[%emt 0:00:02]} Qe7 {[%emt 0:00:18]} 29. Bg5 {[%emt 0:04:54]} Qb7+ {[%emt 0:00:26]} 30. Rf3 {[%emt 0:00:54]} Re8 {[%emt 0:00:18]} 31. Bh6 {[%emt 0:04:02]} Qe7 {[%emt 0:00:32]} 32. Bg5 {[%emt 0:00:43]} Nd5 {[%emt 0:01:26]} 33. Qg3 {[%emt 0:06:07]} Qd7 {[%emt 0:00:31]} 34. Bh6 {[%emt 0:01:56]} Qc6 {[%emt 0:00:26]} 35. Kf1 {[%emt 0:02:48]} Qe6 {[%emt 0:00:31]} 36. Qf2 {[%emt 0:01:27]} Qe7 {[%emt 0:00:26]} 37. h4 {[%emt 0:00:46]} Ne3+ {[%emt 0:00:31]} 38. Bxe3 {[%emt 0:01:47]} dxe3 {[%emt 0:00:09]} 39. Qg3 {[%emt 0:00:19]} e2+ {[%emt 0:00:24]} 40. Ke1 {[%emt 0:00:03]} c4 {[%emt 0:00:58]} 41. dxc4 {[%emt 0:03:45]} Qd8 {[%emt 0:00:24]} 42. Rd3 {[%emt 0:00:18]} Qa5+ {[%emt 0:00:06]} 0-1